bitfinex/quotes_ETHUSD_20240811
["timestamp","ask_amount","ask_price","bid_price","bid_amount"]
[1723409449004,0.0689087,2568.9,2568.1,1.459076]
[1723409449330,6.5292,2569.1,2567.8,3.93]
[1723409449528,3.89344,2568.5,2567.5,10.69788]
[1723409449714,3.55,2569.0,2568.0,3.89403]
[1723409449715,4.50268085,2568.9,2568.0,3.89403]
[1723409449901,3.89298,2568.8,2568.1,0.389403]
[1723409450103,3.96170866,2568.7,2568.1,0.389403]
[1723409450332,3.96170866,2568.7,2567.8,3.89427]
[1723409450531,3.89373,2568.3,2567.6,3.89459]
[1723409450701,6.9582,2568.5,2567.3,3.93]
[1723409450906,6.9582,2568.5,2567.5,3.8948]
[1723409450907,0.06857842,2568.4,2567.5,3.8948]
[1723409451199,0.06857842,2568.4,2567.7,3.89441]
[1723409451433,3.96206842,2568.4,2567.7,3.89441]
[1723409451745,3.96206842,2568.4,2567.6,0.07788133]
[1723409451913,3.96206842,2568.4,2567.6,4.36973646]
[1723409452114,3.96206842,2568.4,2567.7,3.89449]
[1723409452328,7.85565842,2568.4,2567.7,3.89449]
[1723409452527,3.96206842,2568.4,2567.7,3.89449]
[1723409453126,3.89364,2568.3,2567.6,0.47514646]
[1723409453420,0.06812358,2568.2,2567.6,0.47514646]
[1723409453622,0.06812358,2568.2,2567.7,0.43698665]
[1723409453827,0.06812358,2568.2,2567.7,4.33151665]
[1723409454012,3.89349,2568.4,2567.7,4.33151665]
[1723409454212,0.06805821,2568.1,2567.7,4.33151665]
[1723409454555,3.89349,2568.4,2567.7,0.43698665]
[1723409454748,3.89349,2568.4,2567.6,3.97254133]
[1723409454948,3.96147595,2568.3,2567.6,0.07788133]
[1723409455453,0.06782595,2568.3,2567.6,0.07788133]
[1723409455619,3.96145595,2568.3,2567.6,0.07788133]
[1723409456349,0.06782595,2568.3,2567.6,0.07788133]
[1723409456508,0.06782595,2568.3,2567.7,3.89438]
[1723409456714,0.06782595,2568.3,2567.8,0.46731206]
[1723409456950,0.06782595,2568.3,2567.8,4.36168206]
[1723409457114,6.9582,2568.5,2567.8,4.36168206]
[1723409457309,0.06460085,2568.4,2567.8,4.36168206]
[1723409457751,0.06460085,2568.4,2567.8,0.46731206]
[1723409457939,0.06460085,2568.4,2567.9,0.43616921]
[1723409458341,3.95807085,2568.4,2567.9,0.43616921]
[1723409458517,0.06460085,2568.4,2567.3,3.89503]
[1723409458719,7.85169085,2568.4,2567.6,3.89458]
[1723409458915,3.95812085,2568.4,2567.7,0.07787896]
[1723409459165,3.95812085,2568.4,2567.9,3.89414]
[1723409459166,0.06460085,2568.4,2567.9,3.89414]
[1723409459319,10.85113,2568.8,2568.1,3.89386]
[1723409459515,0.06469886,2568.7,2568.1,3.89386]
[1723409459762,0.06469886,2568.7,2567.7,3.89444]
[1723409460054,0.06469886,2568.7,2567.7,0.389444]
[1723409460258,0.06469886,2568.7,2567.3,3.89512]
[1723409460259,3.89414,2568.0,2567.3,3.89512]
[1723409460464,0.06469886,2568.7,2567.2,3.0]
[1723409460619,0.06434012,2567.9,2567.3,7.8682]
[1723409460819,3.89394,2568.1,2567.3,7.86818]
[1723409461063,3.89394,2568.1,2567.4,0.786818]
[1723409461219,0.06437384,2568.0,2567.5,3.8948]
[1723409461420,0.06437384,2568.0,2567.4,0.786818]
[1723409461620,3.0,2568.7,2567.5,0.8654978]
[1723409461844,0.0642808,2567.9,2567.6,3.9725519]
[1723409462054,3.89356,2568.4,2567.6,3.9724819]
[1723409462363,0.06405174,2567.8,2567.6,3.9724819]
[1723409462655,0.06403562,2567.7,2567.6,0.48379797]
[1723409462860,0.06403562,2567.7,2567.3,3.0]
[1723409463022,0.06403562,2567.7,2567.0,3.89549]
[1723409463023,3.89418,2568.0,2567.2,3.89518]
[1723409463219,0.06404315,2567.6,2567.3,3.0]
[1723409463417,3.89426,2567.9,2567.3,3.0]
[1723409463723,10.85199,2568.2,2567.5,3.89479]
[1723409463922,0.06434239,2568.1,2567.5,7.78953]
[1723409464123,0.06434239,2568.1,2567.6,0.07789093]
[1723409464324,0.06434239,2568.1,2567.6,0.47516002]
[1723409464762,0.06434239,2568.1,2567.6,0.39726909]
[1723409464990,0.06434239,2568.1,2567.6,0.07788271]
[1723409465189,3.8934,2568.5,2567.7,3.89444]
[1723409465351,0.06414852,2568.0,2567.8,0.07787978]
[1723409465552,3.89377,2568.3,2567.8,0.78669698]
[1723409465768,0.06441581,2568.2,2567.6,3.8946]
[1723409466453,0.06441581,2568.2,2567.6,3.97248277]
[1723409467476,0.06441581,2568.2,2567.6,3.8946]
[1723409467675,0.06441581,2568.2,2567.7,0.38946]
[1723409467859,0.06441581,2568.2,2567.4,3.89489]
[1723409468061,0.06441581,2568.2,2567.5,3.89471]
[1723409468267,0.06441581,2568.2,2567.6,3.89466]
[1723409468466,0.06441581,2568.2,2567.4,3.89485]
[1723409468717,0.06441581,2568.2,2567.3,3.82]
[1723409468901,3.89462,2567.7,2567.0,3.89557]
[1723409469193,3.95700933,2567.6,2566.9,7.7157]
[1723409469492,0.06222933,2567.6,2567.2,3.89524]
[1723409469851,3.89426,2567.9,2567.2,3.89524]
[1723409470162,3.89426,2567.9,2567.2,4.7904294]
[1723409470374,0.06237017,2567.8,2567.2,4.7904294]
[1723409470557,0.06237017,2567.8,2567.4,3.8949]
[1723409470884,3.8942,2568.0,2567.3,3.89512]
[1723409471085,0.06217678,2567.7,2567.3,0.48683567]
[1723409471261,6.9115,2568.1,2567.0,5.056684]
[1723409471462,7.78869,2567.9,2567.0,5.056684]
[1723409471667,7.78869,2567.9,2566.9,3.82]
[1723409471668,3.89433,2567.9,2567.2,3.89519]
[1723409471890,0.06224216,2567.8,2567.2,7.79039]
[1723409472084,0.06224216,2567.8,2567.2,3.89519]
[1723409472452,0.06224216,2567.8,2567.3,3.89512]
[1723409472657,3.89423,2567.9,2567.3,0.87558769]
[1723409472857,0.06218025,2567.7,2567.3,0.87558769]
[1723409473160,3.89423,2567.9,2567.3,0.87558769]
[1723409473375,0.06211486,2567.6,2567.3,0.87558769]
[1723409473686,6.9115,2568.1,2567.3,4.77348616]
[1723409473875,3.89363,2568.3,2567.6,3.89468]
[1723409474106,3.89363,2568.3,2567.7,3.97238425]
[1723409474262,11.01488,2568.4,2567.8,0.07787908]
[1723409474472,11.01488,2568.4,2567.7,3.8945]
[1723409474473,3.89386,2568.2,2567.7,0.07787933]
[1723409474656,3.89367,2568.3,2567.7,0.07787933]
[1723409474862,7.1214,2568.4,2567.7,4.75909726]
[1723409474863,11.01491,2568.4,2567.7,4.75909726]
[1723409475084,11.01491,2568.4,2567.7,4.75903726]
[1723409475470,3.89364,2568.3,2567.7,0.78672793]
[1723409475660,3.89364,2568.3,2567.6,3.89463]
[1723409475875,3.89364,2568.3,2567.6,3.97251361]
[1723409476072,3.8938,2568.2,2567.6,0.07788361]
[1723409476819,7.1214,2568.4,2567.9,3.89412]
[1723409476964,14.3914,2568.8,2567.8,0.0778754]
[1723409477162,3.89335,2568.5,2567.9,3.89422]
[1723409477368,3.89335,2568.5,2567.8,0.4598754]
[1723409477576,7.7868,2568.5,2567.8,0.4598754]
[1723409477899,3.89335,2568.5,2567.8,0.4598754]
[1723409478061,3.89371,2568.3,2567.5,6.89475]
[1723409478399,3.89371,2568.3,2567.6,3.07787982]
[1723409478603,3.8935,2568.4,2567.7,3.89451]
[1723409478759,3.89342,2568.5,2567.8,0.07787757]
[1723409478960,3.8934,2568.5,2567.7,3.89448]
[1723409479160,14.3914,2568.8,2567.6,3.0]
[1723409479161,3.89305,2568.7,2568.0,3.89397]
[1723409479388,3.89326,2568.6,2567.8,3.9721641]
[1723409479604,3.89326,2568.6,2567.9,0.77921641]
[1723409479768,7.1214,2568.8,2567.7,3.82]
[1723409479769,3.89332,2568.5,2567.7,3.82]
[1723409480162,3.89332,2568.5,2567.8,0.07787808]
[1723409480497,7.7874,2568.3,2567.6,6.89467]
[1723409480720,11.0143,2568.8,2567.3,3.82]
[1723409480721,3.89427,2567.9,2567.3,3.82]
[1723409480877,11.01434,2568.8,2567.3,4.89121]
[1723409480878,10.46684,2568.1,2567.3,4.89121]
[1723409481073,10.46684,2568.1,2567.4,3.9727888]
[1723409481393,6.5729,2568.1,2567.5,5.17065188]
[1723409481577,10.46686,2568.1,2567.5,5.17065188]
[1723409482098,10.46686,2568.1,2567.5,1.27590188]
[1723409482270,6.5729,2568.1,2567.3,3.82]
[1723409482470,6.5729,2568.1,2566.4,0.3905]
[1723409482471,3.8951,2567.4,2566.7,3.89596]
[1723409482886,3.89448,2567.8,2567.0,3.89548]
[1723409483089,3.8942,2568.0,2567.2,3.8952]
[1723409483265,6.5729,2568.1,2567.1,0.46744648]
[1723409483464,3.89466,2567.7,2567.1,0.46744648]
[1723409483664,3.89473,2567.6,2566.9,3.82]
[1723409484067,3.89473,2567.6,2566.6,6.89611]
[1723409484068,6.5729,2568.0,2566.6,3.0]
[1723409484378,3.89557,2567.1,2566.3,3.89657]
[1723409484702,3.89557,2567.1,2566.4,4.36399441]
[1723409484877,3.89557,2567.1,2566.4,4.286077]
[1723409485288,3.89557,2567.1,2566.5,0.07791741]
[1723409485664,3.89557,2567.1,2566.4,4.286077]
[1723409486061,6.5729,2567.3,2566.6,3.89613]
[1723409486302,3.89492,2567.5,2566.8,3.89589]
[1723409486475,3.89492,2567.5,2566.9,0.07790708]
[1723409486671,7.78985,2567.5,2566.9,0.07790708]
[1723409487105,3.89492,2567.5,2566.9,0.07790708]
[1723409487466,7.78989,2567.5,2566.9,0.07790708]
[1723409487811,0.05775191,2567.4,2566.9,0.07790708]
[1723409488501,0.05775191,2567.4,2567.0,3.89551]
[1723409488707,10.46732,2567.8,2567.1,3.97326192]
[1723409488903,0.05774189,2567.3,2567.1,3.97326192]
[1723409489062,3.89477,2567.6,2567.1,0.07790192]
[1723409489266,0.05770071,2567.2,2567.0,3.97340861]
[1723409489499,3.89477,2567.6,2567.0,4.76033247]
[1723409489703,0.0576526,2567.1,2566.6,13.35449]
[1723409490003,3.89514,2567.3,2566.7,3.0]
[1723409490214,3.89514,2567.3,2566.6,3.0]
[1723409490381,0.05773531,2567.2,2566.5,4.6382647]
[1723409490718,0.05773531,2567.2,2566.6,3.89618]
[1723409491083,3.95306531,2567.2,2566.6,3.89618]
[1723409491592,3.95306531,2567.2,2566.5,4.6382647]
[1723409491788,0.05773531,2567.2,2566.4,0.389657]
[1723409492021,0.05773531,2567.2,2566.1,3.82]
[1723409492022,3.89586,2566.9,2566.1,3.82]
[1723409492306,3.89553,2567.1,2566.4,3.8965]
[1723409492307,0.05736688,2566.8,2566.4,3.8965]
[1723409492490,3.89567,2567.0,2566.3,0.07792084]
[1723409492694,0.05737946,2566.7,2566.3,3.89656]
[1723409492902,3.89552,2567.1,2566.4,3.8965]
[1723409493069,0.05731401,2566.6,2566.5,18.64642084]
[1723409493270,3.89477,2567.6,2566.9,3.89571]
[1723409493469,6.9,2567.9,2567.1,3.89536]
[1723409493740,8.60779928,2568.2,2567.5,3.89472]
[1723409494024,8.60779928,2568.2,2567.3,3.82]
[1723409494025,3.89401,2568.1,2567.4,3.89494]
[1723409494181,1.70779928,2568.2,2567.5,0.84937737]
[1723409494382,3.89261,2569.0,2567.8,6.9559]
[1723409494383,6.9,2569.0,2567.8,6.9559]
[1723409494585,10.79258,2569.0,2568.3,3.8935]
[1723409494802,10.79258,2569.0,2568.4,0.07786149]
[1723409494969,6.9,2569.0,2568.4,0.07786149]
[1723409495171,7.78471,2569.2,2568.4,0.07786149]
[1723409495172,3.89233,2569.2,2568.4,0.07786149]
[1723409495367,1.61255156,2569.3,2568.4,0.07786149]
[1723409495568,3.89331,2568.6,2568.1,3.82]
[1723409496074,3.89334,2568.5,2568.1,3.82]
[1723409496307,3.89329,2568.6,2568.1,3.82]
[1723409496814,3.89362,2568.4,2567.7,3.82]
[1723409497003,7.78651,2568.6,2567.8,3.07787613]
[1723409497313,7.78651,2568.6,2567.8,6.97224613]
[1723409497509,3.8932,2568.6,2567.9,3.89409]
[1723409497677,7.78648,2568.6,2568.0,1.08663361]
[1723409498003,7.78648,2568.6,2567.8,6.89429]
[1723409498177,3.8932,2568.6,2567.9,0.07787247]
[1723409498379,3.89333,2568.5,2567.9,0.07787247]
[1723409498672,3.8936,2568.4,2567.8,3.0]
[1723409499133,3.89359,2568.4,2567.8,3.0]
[1723409499352,3.89397,2568.1,2567.3,3.82]
[1723409499561,3.89423,2567.9,2567.3,3.82]
[1723409499720,7.78856,2567.9,2567.3,3.82]
[1723409500055,3.8938,2568.2,2567.4,3.97276837]
[1723409500226,6.9,2568.5,2567.3,3.82]
[1723409500227,3.89395,2568.1,2567.3,3.82]
[1723409500426,3.89395,2568.1,2567.3,7.71514]
[1723409500427,3.89423,2568.0,2567.3,7.71514]
[1723409500955,3.89395,2568.1,2567.4,3.9728282]
[1723409501316,7.78801,2568.1,2567.4,3.9728282]
[1723409501623,3.89395,2568.1,2567.3,3.82]
[1723409501842,3.89395,2568.1,2567.4,0.07788823]
[1723409502043,3.89395,2568.1,2567.4,3.97283823]
[1723409502358,3.89395,2568.1,2567.3,3.82]
[1723409502587,3.94702971,2568.0,2567.3,3.82]
[1723409502890,0.05284971,2568.0,2567.3,7.71512]
[1723409503067,0.05284971,2568.0,2567.4,0.84940023]
[1723409503593,0.05284971,2568.0,2567.4,0.771512]
[1723409503800,3.89427,2567.9,2567.4,0.771512]
[1723409504158,0.05077392,2567.8,2567.4,0.84940018]
[1723409504382,0.05077392,2567.8,2567.6,3.89467]
[1723409504585,7.78743,2568.3,2567.6,0.07787884]
[1723409505087,0.0510389,2568.2,2567.6,0.07787884]
[1723409505452,3.8941,2568.0,2567.3,7.71505]
[1723409505656,3.8941,2568.0,2567.3,9.176095]
[1723409505854,0.05087744,2567.9,2567.3,9.176095]
[1723409506090,0.05087744,2567.9,2567.3,5.281045]
[1723409506683,0.05087744,2567.9,2567.4,3.97278733]
[1723409506896,3.89388,2568.2,2567.5,0.92538323]
[1723409507205,3.89476,2567.6,2566.9,3.82]
[1723409507415,7.79026,2567.4,2566.9,3.82]
[1723409507554,3.89513,2567.4,2566.5,7.71625]
[1723409507892,10.79446,2567.8,2566.5,5.287215]
[1723409507893,3.8956,2567.0,2566.5,5.287215]
[1723409508101,3.8956,2567.0,2566.5,3.82]
[1723409508102,3.89592,2566.8,2566.5,3.82]
[1723409508258,3.89592,2566.8,2566.1,7.71687]
[1723409508259,3.89606,2566.7,2566.1,7.71687]
[1723409508458,3.94621898,2566.7,2566.1,7.71687]
[1723409508677,3.94621898,2566.7,2566.0,3.89709]
[1723409508960,3.94627898,2566.7,2565.7,3.82]
[1723409509155,0.05015898,2566.7,2565.8,0.07793448]
[1723409509366,0.05015898,2566.7,2566.1,7.71687]
[1723409509572,3.89591,2566.8,2566.2,0.07792559]
[1723409509790,3.89646,2566.5,2566.1,3.82]
[1723409510000,3.89666,2566.3,2565.7,3.82]
[1723409510207,3.89696,2566.1,2565.7,3.82]
[1723409510409,7.79403,2566.1,2565.7,3.82]
[1723409510579,0.04931555,2566.0,2565.7,3.82]
[1723409510913,3.89736,2565.9,2565.3,10.894]
[1723409511095,3.89736,2565.9,2565.3,3.82]
[1723409511096,3.94633892,2565.9,2565.3,3.82]
[1723409511408,3.89767,2565.7,2565.3,3.82]
[1723409511716,0.04878245,2565.6,2565.3,3.82]
[1723409512069,3.89774,2565.6,2565.3,3.82]
[1723409512268,0.0485746,2565.5,2565.0,7.074]
[1723409512470,3.89814,2565.4,2564.6,7.074]
[1723409512782,0.04865214,2565.4,2564.8,3.89891]
[1723409513089,10.87976,2565.8,2564.9,3.89796591]
[1723409513291,0.04845475,2565.3,2565.2,3.89828]
[1723409513506,3.89736,2565.9,2565.2,3.97623248]
[1723409513714,0.04761154,2565.3,2565.2,0.86543873]
[1723409513881,3.89743,2565.8,2565.2,0.07795248]
[1723409514082,0.04761154,2565.3,2565.1,3.0]
[1723409514306,3.89721,2566.0,2565.1,3.07795496]
[1723409514611,3.89721,2566.0,2565.3,3.89805]
[1723409514780,3.89721,2566.0,2565.4,3.89801]
[1723409515113,3.89721,2566.0,2565.3,3.89805]
[1723409515114,3.8972,2566.0,2565.3,3.89805]
[1723409515282,3.8972,2566.0,2565.4,0.0779507]
[1723409515618,3.8972,2566.0,2565.3,3.89805]
[1723409515814,3.8973,2565.9,2565.1,3.89837]
[1723409515984,7.79468,2565.9,2565.2,0.689837]
[1723409516187,3.8976,2565.7,2565.2,0.689837]
[1723409516380,3.8976,2565.7,2565.0,3.0]
[1723409516580,3.89774,2565.6,2565.0,3.0]
[1723409516814,3.8976,2565.7,2565.0,6.89854]
[1723409516999,3.8976,2565.7,2565.0,8.5089829]
[1723409517573,0.04790789,2565.6,2565.0,8.5089829]
[1723409518206,0.04790789,2565.6,2565.0,4.6104429]
[1723409518397,0.04790789,2565.6,2565.0,8.5090729]
[1723409518610,3.89826,2565.3,2564.6,10.97323]
[1723409518924,7.03020789,2565.6,2564.5,3.82]
[1723409518925,3.89857,2565.1,2564.5,3.82]
[1723409519073,0.04773168,2565.2,2564.5,7.71937]
[1723409519431,0.04732733,2565.0,2564.9,3.82]
[1723409519575,0.04752178,2565.1,2565.0,3.89863]
[1723409519783,3.89746,2565.8,2565.1,3.89848]
[1723409520097,14.77673,2566.0,2565.3,3.89816]
[1723409520273,0.6104057,2566.7,2565.1,0.07795712]
[1723409520274,7.5927057,2566.7,2565.1,1.479248]
[1723409520474,3.89658,2566.4,2565.7,3.82]
[1723409520773,3.89712,2566.0,2565.3,3.82]
[1723409521011,3.89712,2566.0,2564.3,4.3239209]
[1723409521012,3.89788,2565.5,2564.9,7.71864]
[1723409521185,7.79535,2565.7,2565.0,3.0]
[1723409521400,6.9823,2566.3,2565.2,3.8982]
[1723409521401,3.89737,2565.9,2565.2,3.8982]
[1723409521605,3.89725,2566.0,2565.0,6.89851]
[1723409521773,3.89753,2565.8,2565.0,8.16507736]
[1723409521979,3.89777,2565.6,2565.0,3.0]
[1723409523123,3.898,2565.5,2565.0,3.0]
[1723409523706,10.87822,2566.8,2565.3,3.82]
[1723409523880,10.87822,2566.8,2566.0,7.717]
[1723409524082,10.87822,2566.8,2566.1,0.0779291]
[1723409524594,14.77421,2566.8,2566.1,0.0779291]
[1723409524919,6.9823,2566.8,2566.2,3.89671]
[1723409525117,10.87828,2566.8,2566.1,0.0779291]
[1723409525334,10.87828,2566.8,2566.1,3.9748891]
[1723409525620,3.89614,2566.7,2566.1,0.0779291]
[1723409525935,10.87828,2566.8,2566.0,3.82]
[1723409525936,3.89636,2566.5,2566.0,3.82]
[1723409526224,6.9823,2566.8,2566.1,3.9747982]
[1723409526515,10.87821,2566.8,2566.2,3.89675]
[1723409526978,10.87821,2566.8,2566.1,3.89686]
[1723409527182,10.87821,2566.8,2566.1,3.97478915]
[1723409527409,3.8961,2566.7,2566.0,3.82]
[1723409527609,6.9823,2566.8,2565.7,3.89749]
[1723409527820,3.89659,2566.4,2565.7,3.89752]
[1723409528115,3.89659,2566.4,2565.6,7.71766]
[1723409528425,7.7932,2566.4,2565.7,3.89756]
[1723409528585,7.79319,2566.4,2565.7,3.89756]
[1723409528785,3.89782,2565.6,2565.2,3.82]
[1723409529017,6.9823,2566.1,2564.8,3.82]
[1723409529317,6.9823,2566.1,2564.4,7.074]
[1723409529318,3.8972,2566.0,2565.3,3.89817]
[1723409529519,3.8972,2566.0,2565.4,3.898]
[1723409529724,3.8972,2566.0,2565.2,7.71819]
[1723409529725,7.79441,2566.0,2565.2,11.61638]
[1723409529892,3.8972,2566.0,2565.2,9.587228]
[1723409530215,3.89728,2565.9,2565.3,0.07795352]
[1723409530729,6.9823,2566.1,2565.2,3.82]
[1723409530909,3.89737,2565.9,2565.2,3.82]
[1723409531107,3.8979,2565.5,2565.2,3.82]
[1723409531882,3.89804,2565.4,2565.2,3.82]
[1723409532118,3.89823,2565.3,2564.8,6.82]
[1723409532698,3.89894,2564.8,2564.3,0.12503]
[1723409533028,3.93791362,2565.3,2564.3,4.0246]
[1723409533029,0.03967362,2565.3,2564.3,4.0246]
[1723409533320,9.7336,2565.5,2564.3,4.0246]
[1723409533321,3.89873,2565.0,2564.4,3.82]
[1723409533494,3.89897,2564.8,2564.4,3.82]
[1723409533870,0.03951896,2564.9,2564.5,0.07798073]
[1723409533994,0.03938791,2564.7,2564.5,0.07798073]
[1723409534197,3.89844,2565.2,2564.5,3.97727073]
[1723409534536,7.79687,2565.2,2564.5,0.07798073]
[1723409534688,3.93820164,2565.1,2564.5,0.07798073]
[1723409534887,3.89864,2565.0,2564.4,3.82]
[1723409535124,3.89904,2564.8,2564.4,3.82]
[1723409535431,3.89899,2564.8,2564.3,0.12503]
[1723409535718,3.89934,2564.6,2564.3,0.12503]
[1723409535919,3.89939,2564.5,2564.3,0.12503]
[1723409536430,3.93835916,2564.5,2564.3,0.12503]
[1723409537723,0.03896916,2564.5,2564.3,0.12503]
[1723409538229,3.89916,2564.7,2564.3,0.12503]
[1723409538425,0.03899796,2564.4,2564.3,0.12503]
[1723409538623,3.89916,2564.7,2564.3,0.12503]
[1723409538795,0.03866786,2564.4,2564.3,0.12503]
[1723409538994,3.89916,2564.7,2564.3,0.12503]
[1723409539497,3.89941,2564.5,2564.3,0.12503]
[1723409539992,3.93822872,2564.4,2564.3,0.12503]
[1723409542135,7.83776872,2564.4,2564.3,0.12503]
[1723409542450,0.03868872,2564.4,2564.3,0.12503]
[1723409542845,3.89952,2564.5,2564.3,0.12503]
[1723409543013,0.03805989,2564.4,2564.3,0.12503]
[1723409543210,3.93759989,2564.4,2564.3,0.12503]
[1723409543914,0.03805989,2564.4,2564.3,0.12503]
[1723409544117,1.00869969,2564.9,2564.3,0.12503]
[1723409544429,4.90749969,2564.9,2564.3,0.92282552]
[1723409544640,3.89897,2564.8,2564.3,0.92282552]
[1723409544807,4.90749969,2564.9,2564.3,0.92282552]
[1723409545010,1.00869969,2564.9,2564.3,0.92282552]
[1723409545212,1.00869969,2564.9,2564.8,7.71893]
[1723409545457,7.27,2565.4,2564.8,7.71883]
[1723409545653,3.89796,2565.5,2564.9,0.07796395]
[1723409546057,3.89845,2565.2,2564.5,3.89934]
[1723409546359,3.8985,2565.1,2564.6,3.0]
[1723409546549,3.8985,2565.1,2564.4,6.82]
[1723409546730,3.89881,2564.9,2564.4,3.82]
[1723409547254,10.63221,2565.1,2564.3,0.12503]
[1723409547416,6.7336,2565.1,2564.5,3.89931]
[1723409547619,10.63157,2565.5,2564.7,3.899]
[1723409547820,3.89797,2565.5,2564.9,3.89876]
[1723409548330,3.89828,2565.3,2564.6,10.97233]
[1723409548540,7.79659,2565.3,2564.6,10.97233]
[1723409548735,3.89828,2565.3,2564.6,12.88251621]
[1723409548928,3.89828,2565.3,2564.7,3.9770416]
[1723409549330,3.89796,2565.5,2564.7,3.9770416]
[1723409549526,3.89796,2565.5,2564.7,7.8759916]
[1723409549527,7.79592,2565.5,2564.7,7.8759916]
[1723409549743,3.89803,2565.4,2564.7,3.9769216]
[1723409549954,0.99131562,2565.6,2564.8,0.07797159]
[1723409550127,0.99131562,2565.6,2565.0,3.89855]
[1723409550628,0.99131562,2565.6,2565.0,3.89854]
[1723409551642,0.99131562,2565.6,2564.9,0.07796398]
[1723409551847,0.99131562,2565.6,2564.5,0.4102321]
[1723409551848,3.89828,2565.3,2564.5,4.3095321]
[1723409552059,3.89828,2565.3,2564.6,8.10211621]
[1723409552246,7.79655,2565.3,2564.6,8.10211621]
[1723409552460,3.89827,2565.3,2564.6,12.00126621]
[1723409552839,3.89827,2565.3,2564.6,8.10204621]
[1723409553034,3.89826,2565.3,2564.6,8.10204621]
[1723409553236,3.89826,2565.3,2564.6,12.00118621]
[1723409553481,3.89826,2565.3,2564.6,8.10203621]
[1723409554136,3.89796,2565.5,2564.6,8.10203621]
[1723409554137,0.99131562,2565.6,2564.7,0.92920253]
[1723409554356,3.89803,2565.4,2564.8,3.97676773]
[1723409554572,3.89802,2565.5,2564.8,3.97676773]
[1723409554945,3.89803,2565.4,2564.8,3.97676773]
[1723409555358,3.89798,2565.5,2564.4,3.82]
[1723409555359,3.89886,2564.9,2564.4,3.82]
[1723409555676,3.89853,2565.1,2564.4,3.8994]
[1723409555971,7.79712,2565.1,2564.4,3.8994]
[1723409556176,3.89853,2565.1,2564.4,3.8994]
[1723409557174,3.89879,2564.9,2564.3,0.12503]
[1723409557478,3.89853,2565.1,2564.4,3.89953]
[1723409558174,7.7971,2565.1,2564.4,3.89953]
[1723409558377,3.89834,2565.2,2564.5,3.89938]
[1723409558923,7.79708,2565.1,2564.4,3.89944]
[1723409559271,3.89851,2565.1,2564.4,3.89944]
[1723409559571,6.4725,2565.5,2564.5,6.62948255]
[1723409560073,10.37051,2565.5,2564.9,3.89877]
[1723409560244,10.35551,2565.5,2564.9,3.89877]
[1723409560759,3.89805,2565.4,2564.7,3.89894]
[1723409560965,10.35547,2565.5,2564.8,3.97688884]
[1723409561277,14.25346,2565.5,2564.8,3.89892]
[1723409562045,10.35547,2565.5,2564.9,3.89878]
[1723409562372,10.35547,2565.5,2564.9,4.79085342]
[1723409563078,10.35547,2565.5,2564.7,1.045044]
[1723409563079,3.89841,2565.2,2564.7,1.045044]
[1723409563251,7.79683,2565.2,2564.5,3.89929]
[1723409563755,3.89841,2565.2,2564.4,8.511932]
[1723409563950,3.89875,2565.0,2564.4,0.792422]
[1723409564257,3.8984,2565.2,2564.5,0.7689052]
[1723409564462,6.4575,2565.5,2564.7,3.89908]
[1723409564784,7.79622,2565.4,2564.7,3.89908]
[1723409565175,3.89811,2565.4,2564.7,7.79808]
[1723409565373,3.89811,2565.4,2564.8,3.97683067]
[1723409565891,6.4575,2565.5,2564.9,3.89866]
[1723409566107,6.4575,2565.5,2564.8,3.89886]
[1723409566595,6.4575,2565.5,2564.9,3.89878]
[1723409566796,6.4575,2565.5,2564.8,3.89884]
[1723409566984,3.89805,2565.4,2564.8,3.89884]
[1723409567298,3.89854,2565.1,2564.5,0.7689052]
[1723409567794,3.89847,2565.2,2564.6,0.84607872]
[1723409568000,7.79694,2565.2,2564.6,4.74529872]
[1723409568153,3.89847,2565.2,2564.6,4.74529872]
[1723409569290,3.89849,2565.1,2564.6,0.84607872]
[1723409569592,3.89835,2565.2,2564.6,4.74517872]
[1723409569797,7.79679,2565.2,2564.6,0.84607872]
[1723409570107,3.89835,2565.2,2564.6,0.84607872]
[1723409571308,7.79676,2565.2,2564.5,3.89938]
[1723409571516,3.89835,2565.2,2564.5,3.89938]
[1723409571810,3.89835,2565.2,2564.4,7.691872]
[1723409571972,3.89835,2565.2,2564.5,3.89929]
[1723409572306,3.89835,2565.2,2564.6,3.89912]
[1723409573667,3.89808,2565.4,2564.6,3.97709944]
[1723409574011,3.89808,2565.4,2564.8,3.89891]
[1723409576806,3.89829,2565.3,2564.7,3.89906]
[1723409577008,3.89808,2565.4,2564.7,3.899]
[1723409577580,3.89808,2565.4,2564.7,7.79801]
[1723409577798,3.89808,2565.4,2564.7,5.17886292]
[1723409577999,3.89808,2565.4,2564.7,5.17881292]
[1723409579036,3.89808,2565.4,2564.8,3.89893]
[1723409580716,3.89841,2565.2,2564.5,7.72829]
[1723409580887,3.89812,2565.4,2564.5,7.72827]
[1723409581091,3.89812,2565.4,2564.7,3.89908]
[1723409581092,3.89825,2565.3,2564.7,3.89908]
[1723409581286,3.89825,2565.3,2564.6,1.072827]
[1723409581724,3.89836,2565.2,2564.6,1.072827]
[1723409582440,3.89812,2565.4,2564.6,1.15080605]
[1723409582594,3.89812,2565.4,2564.7,0.49798061]
[1723409583627,3.89774,2565.6,2564.7,0.49798061]
[1723409584131,3.89795,2565.5,2564.9,3.89877]
[1723409584429,7.79591,2565.5,2564.9,3.89877]
[1723409586649,3.89795,2565.5,2564.9,3.89877]
[1723409587199,3.89795,2565.5,2564.7,7.26792061]
[1723409587452,3.89813,2565.4,2564.8,3.89892]
[1723409587741,7.79596,2565.5,2564.8,3.89892]
[1723409588839,3.89795,2565.5,2564.9,3.89876]
[1723409589139,7.79593,2565.5,2564.9,3.89876]
[1723409589304,3.89795,2565.5,2564.9,3.89876]
[1723409592203,1.11934503,2565.6,2564.7,2.871]
[1723409592406,7.79659,2565.3,2564.5,3.8993]